{"text_format":"1","workbook":"xlsx","n_sheets":7,"sheets":["الغلاف","المقدمة","تقريض","الاستبيان","اللقطه الدماغية","اللقطه الدماغيه ( للطباعة ) ","للتواصل"],"not_rendered":{"charts":3,"images":23,"macros":1,"external_links":0,"defined_names":3,"comments":0,"pivot_tables":0},"unopened":[],"bounds":{"document_bytes":16777216,"sheet_cells":100000,"rows_first":2000,"rows_last":500,"rows_between":2000,"halvings":0,"cell_chars":16384,"cell_head_chars":4096},"cells_cut":0,"cells_raw":0,"read":"whole","date_system":"1900"}

{"sheet":"الغلاف","index":0,"n_rows":0,"n_cols":0,"rows_kept":0,"cut":false,"hidden":false,"merged":[[0,0,1048575,76]]}

{"sheet":"المقدمة","index":1,"n_rows":0,"n_cols":0,"rows_kept":0,"cut":false,"hidden":false,"merged":[[0,0,1048575,57]]}

{"sheet":"تقريض","index":2,"n_rows":0,"n_cols":0,"rows_kept":0,"cut":false,"hidden":false,"merged":[[0,0,1048575,57]]}

{"sheet":"الاستبيان","index":3,"n_rows":87,"n_cols":10,"rows_kept":87,"cut":false,"hidden":false,"merged":[[1,5,1,10],[2,5,2,10],[3,5,3,10],[4,5,4,10],[9,0,68,2],[14,5,14,9],[35,5,35,9],[24,5,24,9],[25,5,25,9],[26,5,26,9],[27,5,27,9],[28,5,28,9],[29,5,29,9],[30,5,30,9],[31,5,31,9],[32,5,32,9],[0,5,0,11],[1,11,4,11],[8,11,70,11],[9,3,10,3],[11,5,11,9],[23,5,23,9],[15,5,15,9],[16,5,16,9],[17,5,17,9],[18,5,18,9],[19,5,19,9],[48,5,48,9],[20,5,20,9],[21,5,21,9],[12,5,12,9],[13,5,13,9],[33,5,33,9],[34,5,34,9],[22,5,22,9],[36,5,36,9],[37,5,37,9],[38,5,38,9],[39,5,39,9],[40,5,40,9],[41,5,41,9],[42,5,42,9],[43,5,43,9],[44,5,44,9],[45,5,45,9],[46,5,46,9],[60,5,60,9],[51,5,51,9],[52,5,52,9],[59,5,59,9],[54,5,54,9],[55,5,55,9],[56,5,56,9],[57,5,57,9],[58,5,58,9],[53,5,53,9],[49,5,49,9],[50,5,50,9],[47,5,47,9],[66,5,66,9],[61,5,61,9],[62,5,62,9],[63,5,63,9],[64,5,64,9],[65,5,65,9],[67,5,67,9],[68,5,68,9],[69,5,69,9],[70,5,70,9],[71,5,71,9],[72,5,72,9],[73,5,73,9],[74,5,74,9],[75,5,75,9],[76,5,76,9],[77,5,77,9],[78,5,78,9],[79,5,79,9],[80,5,80,9],[81,5,81,9],[82,5,82,9],[83,5,83,9],[84,5,84,9],[85,5,85,9],[86,5,86,9]]}
[]
[]
[]
[]
[]
[]
[]
[]
[]
[null,null,null,"رقم السؤال","ضع قيمة لكل عبارة بعد استيعابها تماما","دوماً","غالباً","احياناً","نادراً","أبداً"]
[null,null,null,null,"العبـــــــــــــــــــــــــــــــــــــــــــــــــــــــــــــاره",4,3,2,1,0]
[null,null,null,1,"حرصي على الدقة والحقائق قد يجعلني في نظر الآخرين جاف المشاعر"]
[null,null,null,2,"أعمل مع الآخرين عن طيب نفس من أجل هدف مشترك"]
[null,null,null,3,"أدرك الأرقام وأتصورها وأعي دلالاتها ولديّ القدرة على حسابها وتطويعها لما أرغب"]
[null,null,null,4,"لدي القدرة على توقع احتياجات الآخرين ومن ثم مراعاتها"]
[null,null,null,5,"أدرك الكثير من الأشياء بالحدس والبديهة  دون التفكير العميق فيها"]
[null,null,null,6,"حذر وحريص واهتم بالعواقب كثيرا"]
[null,null,null,7,"أجمل اللحظات هي اللحظات التي أسعد فيها الآخرين"]
[null,null,null,8,"أتحمس للأهداف وأكرس لها وقتي وجهدي كله"]
[null,null,null,9,"أستطيع أن أحدد سبب المشكلة عند حدوثها وأحللها ثم أجد لها الحل المناسب"]
[null,null,null,10,"لا يمكن أن أصبر على الفوضى بل أرتب وأنظم كل الأمور والأشياء الخاصة والعامة"]
[null,null,null,11,"لدي القدرة على تنمية العلاقات مع الآخرين والمحافظة عليها والتواصل معهم"]
[null,null,null,12,"المال عندي للإنفاق ويصعب علي جمعه"]
[null,null,null,13,"لست بخيلا ولكني لا أصرف شيئا من مالي إلا بعد تحليل ودراسة متأنية لمدى أهمية الأمر لي"]
[null,null,null,14,"أكره الروتين وأحب التغيير دائما"]
[null,null,null,15,"أحافظ على أغراضي وممتلكاتي بطريقة منظمة ومرتبة"]
[null,null,null,16,"يقول بعض الناس عني ( أنت مندفع ولا يمكن توقع أفعالك)"]
[null,null,null,17,"أعتبر نفسي أسير بوضوح إلى هدفي الذي قررته"]
[null,null,null,18,"أنفذ الأمور دائما خطوة بخطوة وأتمتع بالدقة في عملي"]
[null,null,null,19,"أعتبر أن علاقتي الطيبة مع الآخرين هي أعز ما أملك"]
[null,null,null,20,"أميل للفعل أكثر من ميلي للتأمل والتفكير والتنظير"]
[null,null,null,21,"مستعد للخدمة وتقديم نفسي للآخرين متى احتاجوا إلى ذلك"]
[null,null,null,22,"أجد نفسي أفكر وأستنتج بعيد اً عن العاطفة والمشاعر"]
[null,null,null,23,"يعتمد علي الآخرون ويثقون في إنجازي و إخلاصي"]
[null,null,null,24,"أحب التحدث مع الآخرين عن مشاعري وقصصي"]
[null,null,null,25,"تستهويني الأفكار غير الاعتيادية والتي يسمونها الآخرون أفكار مجنونة"]
[null,null,null,26,"لدي قدرة عالية على تعليل الأحداث واستنتاج آثارها المنطقية"]
[null,null,null,27,"لدي القدرة على مواصلة العمل حتى انجازه"]
[null,null,null,28,"أجيد بث الحماس في همم الآخرين"]
[null,null,null,29,"أمتلك معرفه مميزة بالمواضيع العلمية والتقنية"]
[null,null,null,30,"أعتبر نفسي عطوفا ولطيفا وآنس بالآخرين وأساعدهم متى احتاجوا"]
[null,null,null,31,"أحب العمل في أكثر من شي وفي وقت واحد"]
[null,null,null,32,"أراقب وجوه الآخرين لا إراديا عندما يتحدثوا إلي"]
[null,null,null,33,"كثيرا ما تراودني الأفكار الجديدة"]
[null,null,null,34,"لا أحب أن يقاطع أحد نمطي الروتيني"]
[null,null,null,35,"أشعر بارتياح أثناء أدائي لأعمال التصنيف والترتيب والتنظيم"]
[null,null,null,36,"أهتم عادة بالصورة العامة ولا أدقق في التفاصيل"]
[null,null,null,37,"أعتقد إن العمل أهم بكثير من المشاعر الإنسانية"]
[null,null,null,38,"يُفضِّلُ الآخرون أن أتولى زمام القيادة لمعرفتي لدقائق الأمور"]
[null,null,null,39,"أدون التزاماتي الاجتماعية في مفكرتي الخاصة وأحرص على القيام بها"]
[null,null,null,40,"أتمتع بروح الدعابة التي قد توقعني في مشاكل"]
[null,null,null,41,"أميل في حكمي على الأشياء على حدسي وتوقعاتي أكثر من ميلي إلى الدقة والتحليل"]
[null,null,null,42,"أفضل تعليمات محددة؛ على أن يترك الأمر بلا تعليمات محددة وواضحة"]
[null,null,null,43,"يصفني الناس بأني عاطفي ومجامل ولطيف"]
[null,null,null,44,"يصفني الناس بأني حريص أو حذر أو منضبط"]
[null,null,null,45,"يصفني الناس بأني مغامر، مبدع، خيالي"]
[null,null,null,46,"يصفني الناس بأني حازم أو محلل أو عقلاني"]
[null,null,null,47,"أحب معرفة التفاصيل وخطوات أي عمل سأقوم به"]
[null,null,null,48,"لا أحب الأنظمة والقوانين وأشعر بأنها تقيدني"]
[null,null,null,49,"أحب الشعر أو القصص أو التواصل مع الآخرين"]
[null,null,null,50,"أشعر بأنه يجب أن تنفذ القوانين والعقوبات بحزم دون عاطفة أو مجاملات"]
[null,null,null,51,"لا أحب الأشياء المحتملة أو التي لا يمكن توقع نتائجها (غير مضمونه ولا تستند لأدلة)"]
[null,null,null,52,"أحب مساعدة الآخرين وإعطائهم من وقتي ومالي وجهدي"]
[null,null,null,53,"أحب التخطيط المفصل لأي عمل سأقوم به"]
[null,null,null,54,"عند شرائي لجهاز جديد أحاول تشغيله بنفسي دون اللجوء إلي كتيب التشغيل"]
[null,null,null,55,"أحب الاستماع لمشاكل الآخرين ومساعدتهم"]
[null,null,null,56,"لدي القدرة في التعامل مع الأرقام أو الحسابات"]
[null,null,null,57,"أحب الشكل المثلث في الأشكال الهندسية"]
[null,null,null,58,"أحب الدائرة و الأشكال التي فيها منحنيات أكثر من الاشكال الحادة "]
[null,null,null,59,"أنا افضل الشكل المستطيل وأحب الأشكال التي في هيئتها كالمربع مثلا "]
[null,null,null,60,"تجدني عند فراغي وبيدي القلم أرسم نجمة أو اشكال فيها تشعبات نجمية"]
[null,null,null,61,"نبرة صوتي فيها ارتفاع واحب بناء العلاقات"]
[null,null,null,62,"نبرة صوتي فيها ارتفاع و أحب انجاز المهام"]
[null,null,null,63,"نبرة صوتي منخفضة وأحب بناء العلاقات"]
[null,null,null,64,"نبرة صوتي منخفضة وأحب انجاز المهام"]
[null,null,null,65,"عندما اتحدث إلى زميلي في العمل أنظر إلى عينيه طوال الوقت"]
[null,null,null,66,"عندما اتحدث إلى زميلي في العمل انقل النظر بتكرار بين عينية و النظر إلى الأسفل"]
[null,null,null,67,"عندما اتحدث إلى زميلي في العمل اتلفت حولي "]
[null,null,null,68,"عندما اتحدث إلى زميلي في العمل احاول النظر إلى عينيه ولكني اصرف بصري بعيدا من وقت لآخر"]
[null,null,null,69,"إذا كان علي اتخاذ قرار هام  افكر فيه بشكل متكامل قبل اتخاذ القرار"]
[null,null,null,70,"إذا كان علي اتخاذ قرار هام  اتحمل مسؤولية قراري بشجاعة "]
[null,null,null,71,"إذا كان علي اتخاذ قرار هام  اضع اعتبار لمدى تأثيره على الأخرين قبل اتخاذه"]
[null,null,null,72,"إذا كان علي اتخاذ قرار هام  اتشاور مع شخص احترم وجهة نظرة"]
[null,null,null,73,"عندما اتحدث على الهاتف اركز في حديثي على الهدف من الاتصال"]
[null,null,null,74,"عندما اتحدث على الهاتف اتحدث في الدقائق الأولى من المحادثة عن امور عامة قبل التحول إلى العمل"]
[null,null,null,75,"عندما اتحدث على الهاتف لن أكون في عجل ولا مانع من التحدث عن أشياء خاصة وعامة"]
[null,null,null,76,"عندما اتحدث على الهاتف اختصر المكالمة ما أمكن"]

{"sheet":"اللقطه الدماغية","index":4,"n_rows":11,"n_cols":13,"rows_kept":11,"cut":false,"hidden":false,"merged":[[2,12,2,14],[3,12,3,14],[4,12,4,14],[5,12,5,14],[9,5,9,6],[9,7,9,8],[9,9,9,10],[9,11,9,12]]}
[]
[]
[null,null,null,null,null,null,null,null,null,null,null,null,{"$f":"الاستبيان!F2","v":0}]
[null,null,null,null,null,null,null,null,null,null,null,null,{"$f":"الاستبيان!F3","v":0}]
[null,null,null,null,null,null,null,null,null,null,null,null,{"$f":"الاستبيان!F4","v":0}]
[null,null,null,null,null,null,null,null,null,null,null,null,{"$f":"الاستبيان!F5","v":0}]
[]
[]
[]
[null,null,null,null,null,"A",null,"B",null,"C",null,"D"]
[null,null,null,null,null,{"$f":"(G11*M11)/((G11*0.71)+(M11*0.71))","v":{"$error":"#DIV/0!"}},{"$f":"(الاستبيان!F12+الاستبيان!F14+الاستبيان!F20+الاستبيان!F24+الاستبيان!F28+الاستبيان!F33+الاستبيان!F37+الاستبيان!F40+الاستبيان!F48+الاستبيان!F49+الاستبيان!F57+الاستبيان!F61+الاستبيان!F62+الاستبيان!F67+الاستبيان!F68+الاستبيان!F75+الاستبيان!F78+الاستبيان!F80+الاستبيان!F87)/4","v":0},{"$f":"(G11*I11)/((I11*0.71)+(G11*0.71))","v":{"$error":"#DIV/0!"}},{"$f":"(الاستبيان!F17+الاستبيان!F21+الاستبيان!F26+الاستبيان!F29+الاستبيان!F31+الاستبيان!F34+الاستبيان!F38+الاستبيان!F45+الاستبيان!F46+الاستبيان!F50+الاستبيان!F53+الاستبيان!F55+الاستبيان!F58+الاستبيان!F66+الاستبيان!F70+الاستبيان!F73+الاستبيان!F76+الاستبيان!F81+الاستبيان!F84)/4","v":0},{"$f":"(K11*I11)/((K11*0.71)+(I11*0.71))","v":{"$error":"#DIV/0!"}},{"$f":"(الاستبيان!F13+الاستبيان!F15+الاستبيان!F18+الاستبيان!F22+الاستبيان!F30+الاستبيان!F32+الاستبيان!F35+الاستبيان!F39+الاستبيان!F41+الاستبيان!F43+الاستبيان!F54+الاستبيان!F60+الاستبيان!F63+الاستبيان!F66+الاستبيان!F69+الاستبيان!F74+الاستبيان!F77+الاستبيان!F82+الاستبيان!F86)/4","v":0},{"$f":"(M11*K11)/((M11*0.71)+(K11*0.71))","v":{"$error":"#DIV/0!"}},{"$f":"(الاستبيان!F16+الاستبيان!F19+الاستبيان!F23+الاستبيان!F25+الاستبيان!F27+الاستبيان!F36+الاستبيان!F42+الاستبيان!F44+الاستبيان!F47+الاستبيان!F51+الاستبيان!F52+الاستبيان!F56+الاستبيان!F59+الاستبيان!F67+الاستبيان!F71+الاستبيان!F72+الاستبيان!F79+الاستبيان!F83+الاستبيان!F85)/4","v":0}]

{"sheet":"اللقطه الدماغيه ( للطباعة ) ","index":5,"n_rows":14,"n_cols":9,"rows_kept":14,"cut":false,"hidden":false,"merged":[[0,111,1048575,111],[0,9,1048575,109],[2,6,2,8],[3,6,3,8],[4,6,4,8],[5,6,5,8],[6,8,11,8],[0,4,1,8],[2,4,5,4],[42,0,43,8],[12,5,12,6],[12,3,12,4],[12,1,12,2],[12,7,12,8]]}
[]
[]
[null,null,null,null,null,null,{"$f":"الاستبيان!F2","v":0}]
[null,null,null,null,null,null,{"$f":"الاستبيان!F3","v":0}]
[null,null,null,null,null,null,{"$f":"الاستبيان!F4","v":0}]
[null,null,null,null,null,null,{"$f":"الاستبيان!F5","v":0}]
[]
[]
[]
[]
[]
[]
[null,"A",null,"B",null,"C",null,"D"]
[null,{"$f":"(C14*I14)/((C14*0.71)+(I14*0.71))","v":{"$error":"#DIV/0!"}},{"$f":"(الاستبيان!F12+الاستبيان!F14+الاستبيان!F20+الاستبيان!F24+الاستبيان!F28+الاستبيان!F33+الاستبيان!F37+الاستبيان!F40+الاستبيان!F48+الاستبيان!F49+الاستبيان!F57+الاستبيان!F61+الاستبيان!F62+الاستبيان!F67+الاستبيان!F68+الاستبيان!F75+الاستبيان!F78+الاستبيان!F80+الاستبيان!F87)/4","v":0},{"$f":"(C14*E14)/((E14*0.71)+(C14*0.71))","v":{"$error":"#DIV/0!"}},{"$f":"(الاستبيان!F17+الاستبيان!F21+الاستبيان!F26+الاستبيان!F29+الاستبيان!F31+الاستبيان!F34+الاستبيان!F38+الاستبيان!F45+الاستبيان!F46+الاستبيان!F50+الاستبيان!F53+الاستبيان!F55+الاستبيان!F58+الاستبيان!F66+الاستبيان!F70+الاستبيان!F73+الاستبيان!F76+الاستبيان!F81+الاستبيان!F84)/4","v":0},{"$f":"(G14*E14)/((G14*0.71)+(E14*0.71))","v":{"$error":"#DIV/0!"}},{"$f":"(الاستبيان!F13+الاستبيان!F15+الاستبيان!F18+الاستبيان!F22+الاستبيان!F30+الاستبيان!F32+الاستبيان!F35+الاستبيان!F39+الاستبيان!F41+الاستبيان!F43+الاستبيان!F54+الاستبيان!F60+الاستبيان!F63+الاستبيان!F66+الاستبيان!F69+الاستبيان!F74+الاستبيان!F77+الاستبيان!F82+الاستبيان!F86)/4","v":0},{"$f":"(I14*G14)/((I14*0.71)+(G14*0.71))","v":{"$error":"#DIV/0!"}},{"$f":"(الاستبيان!F16+الاستبيان!F19+الاستبيان!F23+الاستبيان!F25+الاستبيان!F27+الاستبيان!F36+الاستبيان!F42+الاستبيان!F44+الاستبيان!F47+الاستبيان!F51+الاستبيان!F52+الاستبيان!F56+الاستبيان!F59+الاستبيان!F67+الاستبيان!F71+الاستبيان!F72+الاستبيان!F79+الاستبيان!F83+الاستبيان!F85)/4","v":0}]

{"sheet":"للتواصل","index":6,"n_rows":0,"n_cols":0,"rows_kept":0,"cut":false,"hidden":false,"merged":[[0,0,1048575,176]]}